fUST/lending_fUST_20250227
["ID","MTS","AMOUNT","RATE_DAILY","PERIOD"]
[354631069,1740598253881,-15703.25,0.00054246,3]
[354631070,1740598253892,-740.24,0.00054246,120]
[354631071,1740598253902,-500.0,0.00054246,120]
[354631072,1740598253912,-500.0,0.00054246,120]
[354631073,1740598253922,-1417.07,0.00054246,120]
[354631074,1740598253931,-3126.38,0.00054246,120]
[354631075,1740598253941,-500.0,0.00054246,120]
[354631076,1740598253950,-626.25,0.00054246,120]
[354631077,1740598253960,-500.0,0.00054246,120]
[354631078,1740598253972,-500.0,0.00054246,120]
[354631079,1740598253982,-500.0,0.00054246,120]
[354631080,1740598253991,-500.0,0.00054246,120]
[354631081,1740598254000,-500.0,0.00054246,120]
[354631082,1740598254009,-500.0,0.00054246,120]
[354631083,1740598254019,-500.0,0.00054246,120]
[354631084,1740598254029,-3433.35,0.00054246,6]
[354631085,1740598254038,-500.0,0.00054246,120]
[354631086,1740598254047,-500.0,0.00054246,120]
[354631087,1740598254056,-500.0,0.00054246,120]
[354631088,1740598254067,-1039.61,0.00054246,120]
[354631089,1740598254076,-500.0,0.00054246,120]
[354631090,1740598254085,-817.91,0.00054246,120]
[354631091,1740598254095,-3320.47,0.00054246,120]
[354631092,1740598254107,-154.51,0.00054246,120]
[354631093,1740598254118,-500.0,0.00054246,120]
[354631094,1740598254128,-1977.33,0.00054246,120]
[354631095,1740598254170,-334.18,0.00054246,120]
[354631096,1740598254180,-223.0,0.0005447,96]
[354631097,1740598254189,-200.0,0.0005452,7]
[354631098,1740598254198,-500.0,0.0005452,120]
[354631099,1740598254207,-602.27383251,0.0005452,120]
[354631100,1740598254218,-500.0,0.0005452,120]
[354631101,1740598254227,-500.0,0.0005452,120]
[354631102,1740598254236,-500.0,0.0005452,120]
[354631103,1740598254245,-500.0,0.0005452,120]
[354631104,1740598254254,-500.0,0.0005452,120]
[354631105,1740598254263,-489.2146022,0.0005452,120]
[354631106,1740598254272,-500.0,0.0005452,120]
[354631107,1740598254281,-1575.21,0.0005452,120]
[354631108,1740598254290,-500.0,0.0005452,120]
[354631109,1740598254299,-838.59,0.0005452,120]
[354631110,1740598254308,-500.0,0.0005452,120]
[354631111,1740598254317,-500.0,0.0005452,120]
[354631112,1740598254326,-501.85,0.0005452,120]
[354631113,1740598254336,-871.33,0.0005452,120]
[354631114,1740598254345,-21904.82,0.0005452,7]
[354631115,1740598254354,-758.43,0.0005452,120]
[354631116,1740598254362,-500.0,0.0005452,120]
[354631117,1740598254373,-546.24,0.0005452,120]
[354631118,1740598254383,-15703.25,0.0005452,3]
[354631119,1740598254394,-740.24,0.0005452,120]
[354631120,1740598254403,-500.0,0.0005452,120]
[354631121,1740598254412,-500.0,0.0005452,120]
[354631122,1740598254421,-1417.07,0.0005452,120]
[354631123,1740598254431,-3126.38,0.0005452,120]
[354631124,1740598254441,-607.81,0.0005452,120]
[354631125,1740598254450,-626.25,0.0005452,120]
[354631126,1740598254459,-500.0,0.0005452,120]
[354631127,1740598254470,-500.0,0.0005452,120]
[354631128,1740598254480,-368.78,0.0005452,120]
[354631129,1740598254489,-500.0,0.0005452,120]
[354631130,1740598254499,-500.0,0.0005452,120]
[354631131,1740598254508,-500.0,0.0005452,120]
[354631132,1740598254518,-500.0,0.0005452,120]
[354631133,1740598254527,-3433.35,0.0005452,6]
[354631134,1740598254537,-500.0,0.0005452,120]
[354631135,1740598254547,-500.0,0.0005452,120]
[354631136,1740598254556,-500.0,0.0005452,120]
[354631137,1740598254565,-1039.61,0.0005452,120]
[354631138,1740598254574,-500.0,0.0005452,120]
[354631139,1740598254583,-817.91,0.0005452,120]
[354631140,1740598254592,-3320.47,0.0005452,120]
[354631141,1740598254600,-500.0,0.0005452,120]
[354631142,1740598254610,-1977.33,0.0005452,120]
[354631143,1740598254619,-200.0,0.00054794,7]
[354631144,1740598254628,-500.0,0.00054794,120]
[354631145,1740598254637,-500.0,0.00054794,120]
[354631146,1740598254646,-500.0,0.00054794,120]
[354631147,1740598254655,-508.54195658,0.00054794,120]
[354631148,1740598254664,-500.0,0.00054794,120]
[354631149,1740598254673,-500.0,0.00054794,120]
[354631150,1740598254682,-500.0,0.00054794,120]
[354631151,1740598254691,-1575.21,0.00054794,120]
[354631152,1740598254701,-500.0,0.00054794,120]
[354631153,1740598254710,-838.59,0.00054794,120]
[354631154,1740598254721,-500.0,0.00054794,120]
[354631155,1740598254730,-500.0,0.00054794,120]
[354631156,1740598254739,-501.85,0.00054794,120]
[354631157,1740598254748,-871.33,0.00054794,120]
[354631158,1740598254758,-21904.82,0.00054794,7]
[354631159,1740598254767,-758.43,0.00054794,120]
[354631160,1740598254776,-500.0,0.00054794,120]
[354631161,1740598254787,-546.24,0.00054794,120]
[354631162,1740598254796,-15703.25,0.00054794,3]
[354631163,1740598254805,-740.24,0.00054794,120]
[354631164,1740598254817,-500.0,0.00054794,120]
[354631165,1740598254827,-500.0,0.00054794,120]
[354631166,1740598254837,-1417.07,0.00054794,120]
[354631167,1740598254846,-3126.38,0.00054794,120]
[354631168,1740598254857,-626.25,0.00054794,120]
[354631169,1740598254866,-500.0,0.00054794,120]
[354631170,1740598254876,-500.0,0.00054794,120]
[354631171,1740598254885,-500.0,0.00054794,120]
[354631172,1740598254894,-290.59,0.00054794,120]
[354631173,1740598254903,-500.0,0.00054794,120]
[354631174,1740598254912,-500.0,0.00054794,120]
[354631175,1740598254922,-3433.35,0.00054794,6]
[354631176,1740598254931,-543.82527132,0.00054794,120]
[354631177,1740598254941,-500.0,0.00054794,120]
[354631178,1740598254952,-500.0,0.00054794,120]
[354631179,1740598254962,-1039.61,0.00054794,120]
[354631180,1740598254974,-500.0,0.00054794,120]
[354631181,1740598254983,-817.91,0.00054794,120]
[354631182,1740598254992,-3320.47,0.00054794,120]
[354631183,1740598255001,-500.0,0.00054794,120]
[354631184,1740598255011,-1977.33,0.00054794,120]
[354631185,1740598255020,-880.0,0.000549,2]
[354631186,1740598255030,-200.0,0.00055068,7]
[354631187,1740598255039,-500.0,0.00055068,120]
[354631188,1740598255048,-500.0,0.00055068,120]
[354631189,1740598255058,-500.0,0.00055068,120]
[354631190,1740598255067,-500.0,0.00055068,120]
[354631191,1740598255076,-500.0,0.00055068,120]
[354631192,1740598255085,-500.0,0.00055068,120]
[354631193,1740598255094,-1575.21,0.00055068,120]
[354631194,1740598255103,-500.0,0.00055068,120]
[354631195,1740598255113,-838.59,0.00055068,120]
[354631196,1740598255122,-500.0,0.00055068,120]
[354631197,1740598255132,-500.0,0.00055068,120]
[354631198,1740598255142,-501.85,0.00055068,120]
[354631199,1740598255152,-871.33,0.00055068,120]
[354631200,1740598255161,-21904.82,0.00055068,7]
[354631201,1740598255170,-758.43,0.00055068,120]
[354631202,1740598255180,-500.0,0.00055068,120]
[354631203,1740598255189,-546.24,0.00055068,120]
[354631204,1740598255198,-15703.25,0.00055068,3]
[354631205,1740598255207,-740.24,0.00055068,120]
[354631206,1740598255218,-500.0,0.00055068,120]
[354631207,1740598255228,-500.0,0.00055068,120]
[354631208,1740598255238,-1417.07,0.00055068,120]
[354631209,1740598255248,-3126.38,0.00055068,120]
[354631210,1740598255258,-626.25,0.00055068,120]
[354631211,1740598255267,-500.0,0.00055068,120]
[354631212,1740598255278,-500.0,0.00055068,120]
[354631213,1740598255287,-500.0,0.00055068,120]
[354631214,1740598255297,-500.0,0.00055068,120]
[354631215,1740598255306,-395.12349987,0.00055068,120]
[354631216,1740598255316,-3433.35,0.00055068,6]
[354631217,1740598255326,-500.0,0.00055068,120]
[354631218,1740598255336,-500.0,0.00055068,120]
[354631219,1740598255345,-1039.61,0.00055068,120]
[354631220,1740598255354,-500.0,0.00055068,120]
[354631221,1740598255364,-817.91,0.00055068,120]
[354631222,1740598255374,-3320.47,0.00055068,120]
[354631223,1740598255383,-500.0,0.00055068,120]
[354631224,1740598255393,-1977.33,0.00055068,120]
[354631225,1740598255403,-200.0,0.00055342,7]
[354631226,1740598255412,-500.0,0.00055342,120]
[354631227,1740598255422,-500.0,0.00055342,120]
[354631228,1740598255431,-500.0,0.00055342,120]
[354631229,1740598255440,-502.5,0.00055342,120]
[354631230,1740598255449,-500.0,0.00055342,120]
[354631231,1740598255458,-500.0,0.00055342,120]
[354631232,1740598255470,-1575.21,0.00055342,120]
[354631233,1740598255479,-253.58,0.00055342,120]
[354631234,1740598255489,-838.59,0.00055342,120]
[354631235,1740598255499,-500.0,0.00055342,120]
[354631236,1740598255508,-500.0,0.00055342,120]
[354631237,1740598255517,-501.85,0.00055342,120]
[354631238,1740598255527,-871.33,0.00055342,120]
[354631239,1740598255537,-21904.82,0.00055342,7]
[354631240,1740598255547,-758.43,0.00055342,120]
[354631241,1740598255556,-500.0,0.00055342,120]
[354631242,1740598255566,-546.24,0.00055342,120]
[354631243,1740598255575,-15703.25,0.00055342,3]
[354631244,1740598255584,-740.24,0.00055342,120]
[354631245,1740598255594,-500.0,0.00055342,120]
[354631246,1740598255604,-500.0,0.00055342,120]
[354631247,1740598255613,-1417.07,0.00055342,120]
[354631248,1740598255622,-3126.38,0.00055342,120]
[354631249,1740598255632,-626.25,0.00055342,120]
[354631250,1740598255641,-500.0,0.00055342,120]
[354631251,1740598255651,-500.0,0.00055342,120]
[354631252,1740598255660,-500.0,0.00055342,120]
[354631253,1740598255669,-162.9,0.00055342,120]
[354631254,1740598255679,-3433.35,0.00055342,6]
[354631255,1740598255689,-500.0,0.00055342,120]
[354631256,1740598255698,-308.88,0.00055342,120]
[354631257,1740598255707,-1039.61,0.00055342,120]
[354631258,1740598255718,-500.0,0.00055342,120]
[354631259,1740598255727,-817.91,0.00055342,120]
[354631260,1740598255736,-3320.47,0.00055342,120]
[354631261,1740598255745,-500.0,0.00055342,120]
[354631262,1740598255755,-1977.33,0.00055342,120]
[354631263,1740598255764,-1008.38,0.000555,30]
[354631264,1740598255773,-200.0,0.00055616,7]
[354631265,1740598255782,-500.0,0.00055616,120]
[354631266,1740598255791,-500.0,0.00055616,120]
[354631267,1740598255803,-500.0,0.00055616,120]
[354631268,1740598255812,-500.0,0.00055616,120]
[354631269,1740598255821,-236.96,0.00055616,120]
[354631270,1740598255830,-1575.21,0.00055616,120]
[354631271,1740598255842,-838.59,0.00055616,120]
[354631272,1740598255851,-500.0,0.00055616,120]
[354631273,1740598255860,-500.0,0.00055616,120]
[354631274,1740598255869,-501.85,0.00055616,120]
[354631275,1740598255882,-871.33,0.00055616,120]
[354631276,1740598255892,-21904.82,0.00055616,7]
[354631277,1740598255901,-758.43,0.00055616,120]
[354631278,1740598255910,-500.0,0.00055616,120]
[354631279,1740598255919,-546.24,0.00055616,120]
[354631280,1740598255928,-15703.25,0.00055616,3]
[354631281,1740598255938,-740.24,0.00055616,120]
[354631282,1740598255947,-500.0,0.00055616,120]
[354631283,1740598255957,-500.0,0.00055616,120]
[354631284,1740598255967,-1417.07,0.00055616,120]
[354631285,1740598255976,-3126.38,0.00055616,120]
[354631286,1740598255985,-626.25,0.00055616,120]
[354631287,1740598255995,-503.3,0.00055616,120]
[354631288,1740598256004,-500.0,0.00055616,120]
[354631289,1740598256014,-500.0,0.00055616,120]
[354631290,1740598256023,-3433.35,0.00055616,6]
[354631291,1740598256032,-500.0,0.00055616,120]
[354631292,1740598256042,-1039.61,0.00055616,120]
[354631293,1740598256051,-500.0,0.00055616,120]
[354631294,1740598256060,-817.91,0.00055616,120]
[354631295,1740598256069,-3320.47,0.00055616,120]
[354631296,1740598256079,-500.0,0.00055616,120]
[354631297,1740598256088,-1977.33,0.00055616,120]
[354631298,1740598256098,-200.0,0.0005589,7]
[354631299,1740598256107,-545.71271165,0.0005589,120]
[354631300,1740598256116,-463.25,0.0005589,120]
[354631301,1740598256125,-500.0,0.0005589,120]
[354631302,1740598256135,-500.0,0.0005589,120]
[354631303,1740598256144,-1575.21,0.0005589,120]
[354631304,1740598256153,-838.59,0.0005589,120]
[354631305,1740598256163,-500.0,0.0005589,120]
[354631306,1740598256172,-500.0,0.0005589,120]
[354631307,1740598256181,-501.85,0.0005589,120]
[354631308,1740598256191,-871.33,0.0005589,120]
[354631309,1740598256200,-21904.82,0.0005589,7]
[354631310,1740598256210,-758.43,0.0005589,120]
[354631311,1740598256219,-500.0,0.0005589,120]
[354631312,1740598256228,-546.24,0.0005589,120]
[354631313,1740598256237,-15703.25,0.0005589,3]
[354631314,1740598256247,-740.24,0.0005589,120]
[354631315,1740598256256,-500.0,0.0005589,120]
[354631316,1740598256266,-500.0,0.0005589,120]
[354631317,1740598256275,-1417.07,0.0005589,120]
[354631318,1740598256284,-3126.38,0.0005589,120]
[354631319,1740598256293,-626.25,0.0005589,120]
[354631320,1740598256302,-500.0,0.0005589,120]
[354631321,1740598256312,-500.0,0.0005589,120]
[354631322,1740598256321,-3433.35,0.0005589,6]
[354631323,1740598256330,-500.0,0.0005589,120]
[354631324,1740598256339,-1039.61,0.0005589,120]
[354631325,1740598256348,-500.0,0.0005589,120]
[354631326,1740598256357,-817.91,0.0005589,120]
[354631327,1740598256367,-3320.47,0.0005589,120]
[354631328,1740598256377,-500.0,0.0005589,120]
[354631329,1740598256387,-1977.33,0.0005589,120]
[354631330,1740598256396,-154.7376905,0.0005589,60]
[354631331,1740598256405,-7362.99112122,0.00056064,2]
[354631332,1740598256414,-200.0,0.00056164,7]
[354631333,1740598256424,-500.0,0.00056164,120]
[354631334,1740598256433,-500.0,0.00056164,120]
[354631335,1740598256443,-1575.21,0.00056164,120]
[354631336,1740598256452,-838.59,0.00056164,120]
[354631337,1740598256462,-500.0,0.00056164,120]
[354631338,1740598256471,-500.0,0.00056164,120]
[354631339,1740598256481,-501.85,0.00056164,120]
[354631340,1740598256490,-871.33,0.00056164,120]
[354631341,1740598256500,-21904.82,0.00056164,7]
[354631342,1740598256509,-758.43,0.00056164,120]
[354631343,1740598256518,-500.0,0.00056164,120]
[354631344,1740598256528,-546.24,0.00056164,120]
[354631345,1740598256537,-15703.25,0.00056164,3]
[354631346,1740598256549,-740.24,0.00056164,120]
[354631347,1740598256558,-500.0,0.00056164,120]
[354631348,1740598256568,-639.98,0.00056164,120]
[354631349,1740598256578,-1417.07,0.00056164,120]
[354631350,1740598256588,-3126.38,0.00056164,120]
[354631351,1740598256598,-626.25,0.00056164,120]
[354631352,1740598256608,-500.0,0.00056164,120]
[354631353,1740598256618,-500.0,0.00056164,120]
[354631354,1740598256628,-5000.0,0.00056164,120]
[354631355,1740598256638,-5000.0,0.00056164,120]
[354631356,1740598256647,-5000.0,0.00056164,120]
[354631357,1740598256658,-5000.0,0.00056164,120]
[354631358,1740598256667,-5000.0,0.00056164,120]
[354631359,1740598256676,-5000.0,0.00056164,120]
[354631360,1740598256686,-5000.0,0.00056164,120]
[354631361,1740598256695,-5000.0,0.00056164,120]
[354631362,1740598256706,-5000.0,0.00056164,120]
[354631363,1740598256719,-5000.0,0.00056164,120]
[354631364,1740598256728,-5000.0,0.00056164,120]
[354631365,1740598256738,-5000.0,0.00056164,120]
[354631366,1740598256747,-5000.0,0.00056164,120]
[354631367,1740598256756,-5000.0,0.00056164,120]
[354631368,1740598256765,-5000.0,0.00056164,120]
[354631369,1740598256775,-5000.0,0.00056164,120]
[354631370,1740598256784,-1709.266725,0.00056164,120]
[354631371,1740598256794,-3433.35,0.00056164,6]
[354631372,1740598256805,-500.0,0.00056164,120]
[354631373,1740598256818,-1039.61,0.00056164,120]
[354631374,1740598256827,-500.0,0.00056164,120]
[354631375,1740598256837,-817.91,0.00056164,120]
[354631376,1740598256846,-3320.47,0.00056164,120]
[354631377,1740598256857,-500.0,0.00056164,120]
[354631378,1740598256867,-1977.33,0.00056164,120]
[354631379,1740598256876,-1006.78259754,0.000562,4]
[354631380,1740598256887,-200.0,0.00056438,7]
[354631381,1740598256896,-500.0,0.00056438,120]
[354631382,1740598256905,-500.0,0.00056438,120]
[354631383,1740598256914,-1575.21,0.00056438,120]
[354631384,1740598256923,-838.59,0.00056438,120]
[354631385,1740598256932,-500.0,0.00056438,120]
[354631386,1740598256940,-500.0,0.00056438,120]
[354631387,1740598256950,-501.85,0.00056438,120]
[354631388,1740598256959,-871.33,0.00056438,120]
[354631389,1740598256969,-21904.82,0.00056438,7]
[354631390,1740598256979,-758.43,0.00056438,120]
[354631391,1740598256988,-500.0,0.00056438,120]
[354631392,1740598256997,-546.24,0.00056438,120]
[354631393,1740598257007,-15703.25,0.00056438,3]
[354631394,1740598257017,-740.24,0.00056438,120]
[354631395,1740598257025,-500.0,0.00056438,120]
[354631396,1740598257035,-1417.07,0.00056438,120]
[354631397,1740598257044,-3126.38,0.00056438,120]
[354631398,1740598257053,-626.25,0.00056438,120]
[354631399,1740598257063,-500.0,0.00056438,120]
[354631400,1740598257072,-574.07522724,0.00056438,120]
[354631401,1740598257082,-3433.35,0.00056438,6]
[354631402,1740598257091,-500.0,0.00056438,120]
[354631403,1740598257101,-1039.61,0.00056438,120]
[354631404,1740598257110,-405.17,0.00056438,120]
[354631405,1740598257119,-817.91,0.00056438,120]
[354631406,1740598257128,-3320.47,0.00056438,120]
[354631407,1740598257138,-257.02602048,0.00056438,120]
[354631408,1740598257147,-1977.33,0.00056438,120]
[354631409,1740598257156,-1057.12,0.000566,30]
[354631410,1740598257166,-200.0,0.00056712,7]
[354631411,1740598257175,-213.53,0.00056712,120]
[354631412,1740598257184,-500.0,0.00056712,120]
[354631413,1740598257194,-1575.21,0.00056712,120]
[354631414,1740598257204,-838.59,0.00056712,120]
[354631415,1740598257213,-500.0,0.00056712,120]
[354631416,1740598257223,-500.0,0.00056712,120]
[354631417,1740598257232,-501.85,0.00056712,120]
[354631418,1740598257241,-871.33,0.00056712,120]
[354631419,1740598257251,-21904.82,0.00056712,7]
[354631420,1740598257260,-758.43,0.00056712,120]
[354631421,1740598257270,-500.0,0.00056712,120]
[354631422,1740598257279,-546.24,0.00056712,120]
[354631423,1740598257289,-15703.25,0.00056712,3]
[354631424,1740598257298,-740.24,0.00056712,120]
[354631425,1740598257308,-500.0,0.00056712,120]
[354631426,1740598257317,-1417.07,0.00056712,120]
[354631427,1740598257327,-3126.38,0.00056712,120]
[354631428,1740598257336,-626.25,0.00056712,120]
[354631429,1740598257346,-500.0,0.00056712,120]
[354631430,1740598257355,-3433.35,0.00056712,6]
[354631431,1740598257365,-500.0,0.00056712,120]
[354631432,1740598257375,-1039.61,0.00056712,120]
[354631433,1740598257384,-817.91,0.00056712,120]
[354631434,1740598257394,-3320.47,0.00056712,120]
[354631435,1740598257404,-1977.33,0.00056712,120]
[354631436,1740598257414,-543.09576557,0.00056762,15]
[354631437,1740598257424,-524.97,0.000568,30]
[354631438,1740598257434,-245.4,0.000568,30]
[354631439,1740598257443,-200.0,0.00056986,7]
[354631440,1740598257453,-500.0,0.00056986,120]
[354631441,1740598257462,-1575.21,0.00056986,120]
[354631442,1740598257474,-838.59,0.00056986,120]
[354631443,1740598257483,-500.0,0.00056986,120]
[354631444,1740598257493,-500.0,0.00056986,120]
[354631445,1740598257502,-501.85,0.00056986,120]
[354631446,1740598257513,-871.33,0.00056986,120]
[354631447,1740598257522,-21904.82,0.00056986,7]
[354631448,1740598257532,-758.43,0.00056986,120]
[354631449,1740598257541,-500.0,0.00056986,120]
[354631450,1740598257551,-546.24,0.00056986,120]
[354631451,1740598257562,-15703.25,0.00056986,3]
[354631452,1740598257572,-740.24,0.00056986,120]
[354631453,1740598257582,-425.9914326,0.00056986,120]
[354631454,1740598257592,-1417.07,0.00056986,120]
[354631455,1740598257602,-3126.38,0.00056986,120]
[354631456,1740598257612,-626.25,0.00056986,120]
[354631457,1740598257622,-500.0,0.00056986,120]
[354631458,1740598257632,-3433.35,0.00056986,6]
[354631459,1740598257641,-500.0,0.00056986,120]
[354631460,1740598257651,-1039.61,0.00056986,120]
[354631461,1740598257661,-817.91,0.00056986,120]
[354631462,1740598257670,-3320.47,0.00056986,120]
[354631463,1740598257680,-1977.33,0.00056986,120]
[354631464,1740598257690,-327.21869358,0.0005726,7]
[354631465,1740598257700,-617.14,0.0005726,120]
[354631466,1740598257710,-1575.21,0.0005726,120]
[354631467,1740598257721,-838.59,0.0005726,120]
[354631468,1740598257730,-532.38122712,0.0005726,120]
[354631469,1740598257740,-500.0,0.0005726,120]
[354631470,1740598257750,-501.85,0.0005726,120]
[354631471,1740598257759,-871.33,0.0005726,120]
[354631472,1740598257769,-21904.82,0.0005726,7]
[354631473,1740598257779,-758.43,0.0005726,120]
[354631474,1740598257789,-630.45,0.0005726,120]
[354631475,1740598257802,-546.24,0.0005726,120]
[354631476,1740598257812,-15703.25,0.0005726,3]
[354631477,1740598257823,-740.24,0.0005726,120]
[354631478,1740598257833,-1417.07,0.0005726,120]
[354631479,1740598257845,-3126.38,0.0005726,120]
[354631480,1740598257856,-626.25,0.0005726,120]
[354631481,1740598257867,-558.47,0.0005726,120]
[354631482,1740598257879,-3433.35,0.0005726,6]
[354631483,1740598257889,-500.0,0.0005726,120]
[354631484,1740598257899,-1039.61,0.0005726,120]
[354631485,1740598257909,-817.91,0.0005726,120]
[354631486,1740598257918,-3320.47,0.0005726,120]
[354631487,1740598257928,-1977.33,0.0005726,120]
[354631488,1740598257937,-20583.52,0.00057533,120]
[354631489,1740598257947,-1575.21,0.00057534,120]
[354631490,1740598257956,-838.59,0.00057534,120]
[354631491,1740598257966,-500.0,0.00057534,120]
[354631492,1740598257978,-501.85,0.00057534,120]
[354631493,1740598257987,-871.33,0.00057534,120]
[354631494,1740598257997,-21904.82,0.00057534,7]
[354631495,1740598258006,-758.43,0.00057534,120]
[354631496,1740598258016,-546.24,0.00057534,120]
[354631497,1740598258025,-15703.25,0.00057534,3]
[354631498,1740598258036,-740.24,0.00057534,120]
[354631499,1740598258046,-1417.07,0.00057534,120]
[354631500,1740598258056,-3126.38,0.00057534,120]
[354631501,1740598258066,-626.25,0.00057534,120]
[354631502,1740598258077,-3433.35,0.00057534,6]
[354631503,1740598258087,-500.0,0.00057534,120]
[354631504,1740598258098,-1039.61,0.00057534,120]
[354631505,1740598258108,-817.91,0.00057534,120]
[354631506,1740598258119,-3320.47,0.00057534,120]
[354631507,1740598258129,-1977.33,0.00057534,120]
[354631508,1740598258139,-1575.21,0.00057808,120]
[354631509,1740598258149,-838.59,0.00057808,120]
[354631510,1740598258159,-500.0,0.00057808,120]
[354631511,1740598258169,-501.85,0.00057808,120]
[354631512,1740598258178,-871.33,0.00057808,120]
[354631513,1740598258188,-21904.82,0.00057808,7]
[354631514,1740598258198,-758.43,0.00057808,120]
[354631515,1740598258208,-546.24,0.00057808,120]
[354631516,1740598258219,-15703.25,0.00057808,3]
[354631517,1740598258229,-740.24,0.00057808,120]
[354631518,1740598258239,-1417.07,0.00057808,120]
[354631519,1740598258249,-3126.38,0.00057808,120]
[354631520,1740598258258,-626.25,0.00057808,120]
[354631521,1740598258268,-3433.35,0.00057808,6]
[354631522,1740598258278,-500.0,0.00057808,120]
[354631523,1740598258288,-1039.61,0.00057808,120]
[354631524,1740598258298,-817.91,0.00057808,120]
[354631525,1740598258308,-3320.47,0.00057808,120]
[354631526,1740598258317,-1977.33,0.00057808,120]
[354631527,1740598258327,-90725.14160683,0.00057989,120]
[354631528,1740598258337,-1575.21,0.00058082,120]
[354631529,1740598258347,-838.59,0.00058082,120]
[354631530,1740598258356,-500.0,0.00058082,120]
[354631531,1740598258366,-501.85,0.00058082,120]
[354631532,1740598258376,-871.33,0.00058082,120]
[354631533,1740598258385,-21904.82,0.00058082,7]
[354631534,1740598258395,-758.43,0.00058082,120]
[354631535,1740598258405,-546.24,0.00058082,120]
[354631536,1740598258415,-15703.25,0.00058082,3]
[354631537,1740598258425,-740.24,0.00058082,120]
[354631538,1740598258434,-1417.07,0.00058082,120]
[354631539,1740598258444,-3126.38,0.00058082,120]
[354631540,1740598258454,-626.25,0.00058082,120]
[354631541,1740598258464,-3433.35,0.00058082,6]
[354631542,1740598258475,-500.0,0.00058082,120]
[354631543,1740598258484,-1039.61,0.00058082,120]
[354631544,1740598258494,-817.91,0.00058082,120]
[354631545,1740598258503,-3320.47,0.00058082,120]
[354631546,1740598258513,-1575.40148763,0.00058356,120]
[354631547,1740598258523,-838.61691587,0.00058356,120]
[354631548,1740598258532,-401.40956201,0.00058356,120]
[354631549,1740598258541,-502.0,0.00058356,120]
[354631550,1740598258551,-871.35766713,0.00058356,120]
[354631551,1740598258561,-21904.9362,0.00058356,7]
[354631552,1740598258571,-758.49867318,0.00058356,120]
[354631553,1740598258581,-546.25,0.00058356,120]
[354631554,1740598258591,-15703.46597308,0.00058356,3]
[354631555,1740598258601,-740.25,0.00058356,120]
[354631556,1740598258611,-1417.11,0.00058356,120]
[354631557,1740598258621,-3126.57229041,0.00058356,120]
[354631558,1740598258630,-626.30265444,0.00058356,120]
[354631559,1740598258640,-3433.51,0.00058356,6]
[354631560,1740598258650,-462.13674286,0.00058356,120]
[354631561,1740598258659,-1039.82,0.00058356,120]
[354631562,1740598258669,-818.09317501,0.00058356,120]
[354631563,1740598258679,-3320.6,0.00058356,120]
[354631564,1740598258688,-1000.0,0.00058752,15]
[354631565,1740598258698,-1000.0,0.00058752,14]
[354631566,1740598258708,-1000.0,0.00058752,14]
[354631567,1740598258717,-166.79843,0.00059314,120]
[354631568,1740598258728,-1000.0,0.00059428,7]